fUSD/lending_fUSD_20250510
["ID","MTS","AMOUNT","RATE_DAILY","PERIOD"]
[360567451,1746892272969,-1153.66,0.00019178,2]
[360567452,1746892272987,-464.94121186,0.00019178,2]
[360567453,1746892273006,-400.0,0.00019178,2]
[360567454,1746892273025,-424.69,0.00019178,2]
[360567455,1746892273041,-1153.66,0.00019178,2]
[360567456,1746892273061,-400.0,0.00019178,2]
[360567457,1746892273080,-424.69,0.00019178,2]
[360567458,1746892273100,-400.0,0.00019178,2]
[360567459,1746892273118,-1153.66,0.00019178,2]
[360567460,1746892273136,-400.0,0.00019178,2]
[360567461,1746892273153,-400.0,0.00019178,2]
[360567462,1746892273167,-424.69,0.00019178,2]
[360567463,1746892273186,-400.0,0.00019178,2]
[360567464,1746892273199,-400.0,0.00019178,2]
[360567465,1746892273216,-1153.66,0.00019178,2]
[360567466,1746892273230,-400.0,0.00019178,2]
[360567467,1746892273245,-265.24569272,0.00019178,2]
[360567468,1746892273260,-424.69,0.00019178,2]
[360567469,1746892273275,-400.0,0.00019178,2]
[360567470,1746892273290,-400.0,0.00019178,2]
[360567471,1746892273304,-400.0,0.00019178,2]
[360567472,1746892273319,-1153.66,0.00019178,2]
[360567473,1746892273333,-400.0,0.00019178,2]
[360567474,1746892273348,-424.69,0.00019178,2]
[360567475,1746892273363,-400.0,0.00019178,2]
[360567476,1746892273377,-400.0,0.00019178,2]
[360567477,1746892273391,-400.0,0.00019178,2]
[360567478,1746892273404,-835.15,0.00019178,2]
[360567479,1746892273418,-1153.66,0.00019178,2]
[360567480,1746892273434,-400.0,0.00019178,2]
[360567481,1746892273449,-400.0,0.00019178,2]
[360567482,1746892273463,-401.54856967,0.00019178,2]
[360567483,1746892273478,-835.15,0.00019178,2]
[360567484,1746892273492,-151.0,0.00019178,2]
[360567485,1746892273506,-400.0,0.00019178,2]
[360567486,1746892273520,-835.15,0.00019178,2]
[360567487,1746892273535,-400.0,0.00019178,2]
[360567488,1746892273549,-6728.984786,0.00019178,2]
[360567489,1746892273563,-400.0,0.00019178,2]
[360567490,1746892273578,-835.15,0.00019178,2]
[360567491,1746892273592,-400.0,0.00019178,2]
[360567492,1746892273607,-6728.984786,0.00019178,2]
[360567493,1746892273621,-400.0,0.00019178,2]
[360567494,1746892273636,-718.71,0.00019178,2]
[360567495,1746892273650,-835.15,0.00019178,2]
[360567496,1746892273664,-400.0,0.00019178,2]
[360567497,1746892273679,-400.0,0.00019178,2]
[360567498,1746892273694,-718.71,0.00019178,2]
[360567499,1746892273710,-6728.984786,0.00019178,2]
[360567500,1746892273725,-835.15,0.00019178,2]
[360567501,1746892273739,-400.0,0.00019178,2]
[360567502,1746892273754,-400.0,0.00019178,2]
[360567503,1746892273769,-718.71,0.00019178,2]
[360567504,1746892273783,-6728.984786,0.00019178,2]
[360567505,1746892273802,-718.71,0.00019178,2]
[360567506,1746892273817,-6728.984786,0.00019178,2]
[360567507,1746892273831,-718.71,0.00019178,2]
[360567508,1746892273846,-347.47669121,0.00019178,2]
[360567509,1746892273860,-6728.984786,0.00019178,2]
[360567510,1746892273875,-400.0,0.00019178,2]
[360567511,1746892273890,-400.0,0.00019178,2]
[360567512,1746892273904,-400.0,0.00019178,2]
[360567513,1746892273919,-6728.984786,0.00019178,2]
[360567514,1746892273932,-400.0,0.00019178,2]
[360567515,1746892273947,-400.0,0.00019178,2]
[360567516,1746892273962,-6728.984786,0.00019178,2]
[360567517,1746892273976,-400.0,0.00019178,2]
[360567518,1746892273991,-405.27214033,0.00019178,2]
[360567519,1746892274005,-400.0,0.00019178,2]
[360567520,1746892274020,-400.0,0.00019178,2]
[360567521,1746892274034,-6728.984786,0.00019178,2]
[360567522,1746892274049,-400.0,0.00019178,2]
[360567523,1746892274067,-400.0,0.00019178,2]
[360567524,1746892274082,-6728.984786,0.00019178,2]
[360567525,1746892274097,-400.0,0.00019178,2]
[360567526,1746892274112,-6728.984786,0.00019178,2]
[360567527,1746892274127,-400.0,0.00019178,2]
[360567528,1746892274142,-400.0,0.00019178,2]
[360567529,1746892274157,-441.9,0.00019178,2]
[360567530,1746892274172,-151.0,0.00019178,2]
[360567531,1746892274185,-441.9,0.00019178,2]
[360567532,1746892274200,-441.9,0.00019178,2]
[360567533,1746892274214,-400.0,0.00019178,2]
[360567534,1746892274228,-441.9,0.00019178,2]
[360567535,1746892274242,-400.0,0.00019178,2]
[360567536,1746892274256,-441.9,0.00019178,2]
[360567537,1746892274270,-400.0,0.00019178,2]
[360567538,1746892274284,-441.9,0.00019178,2]
[360567539,1746892274298,-400.0,0.00019178,2]
[360567540,1746892274313,-294.724467,0.00019178,2]
[360567541,1746892274330,-400.0,0.00019178,2]
[360567542,1746892274345,-400.0,0.00019178,2]
[360567543,1746892274359,-294.724467,0.00019178,2]
[360567544,1746892274373,-400.0,0.00019178,2]
[360567545,1746892274387,-540.13073377,0.00019178,2]
[360567546,1746892274402,-400.0,0.00019178,2]
[360567547,1746892274416,-400.0,0.00019178,2]
[360567548,1746892274431,-400.0,0.00019178,2]
[360567549,1746892274444,-400.0,0.00019178,2]
[360567550,1746892274459,-400.0,0.00019178,2]
[360567551,1746892274691,-643.18,0.00019178,2]
[360567552,1746892274706,-924.57,0.00019178,2]
[360567553,1746892274716,-400.0,0.00019178,2]
[360567554,1746892274726,-924.57,0.00019178,2]
[360567555,1746892274736,-400.0,0.00019178,2]
[360567556,1746892274746,-1666.15,0.00019178,2]
[360567557,1746892274757,-924.57,0.00019178,2]
[360567558,1746892274767,-400.0,0.00019178,2]
[360567559,1746892274777,-1666.15,0.00019178,2]
[360567560,1746892274794,-924.57,0.00019178,2]
[360567561,1746892274805,-294.724467,0.00019178,2]
[360567562,1746892274816,-400.0,0.00019178,2]
[360567563,1746892274826,-400.0,0.00019178,2]
[360567564,1746892274835,-1666.15,0.00019178,2]
[360567565,1746892274845,-924.57,0.00019178,2]
[360567566,1746892274855,-400.0,0.00019178,2]
[360567567,1746892274866,-400.0,0.00019178,2]
[360567568,1746892274876,-294.724467,0.00019178,2]
[360567569,1746892274885,-655.2,0.00019178,2]
[360567570,1746892274895,-564.16,0.00019178,2]
[360567571,1746892274904,-1666.15,0.00019178,2]
[360567572,1746892274914,-924.57,0.00019178,2]
[360567573,1746892274924,-400.0,0.00019178,2]
[360567574,1746892274933,-400.0,0.00019178,2]
[360567575,1746892274943,-564.16,0.00019178,2]
[360567576,1746892274952,-655.2,0.00019178,2]
[360567577,1746892274962,-400.0,0.00019178,2]
[360567578,1746892274971,-1666.15,0.00019178,2]
[360567579,1746892274980,-294.724467,0.00019178,2]
[360567580,1746892274990,-400.0,0.00019178,2]
[360567581,1746892274999,-400.0,0.00019178,2]
[360567582,1746892275009,-655.2,0.00019178,2]
[360567583,1746892275019,-564.16,0.00019178,2]
[360567584,1746892275029,-400.0,0.00019178,2]
[360567585,1746892275041,-1666.15,0.00019178,2]
[360567586,1746892275051,-294.724467,0.00019178,2]
[360567587,1746892275063,-400.0,0.00019178,2]
[360567588,1746892275072,-400.0,0.00019178,2]
[360567589,1746892275082,-400.0,0.00019178,2]
[360567590,1746892275092,-655.2,0.00019178,2]
[360567591,1746892275103,-564.16,0.00019178,2]
[360567592,1746892275112,-400.0,0.00019178,2]
[360567593,1746892275122,-400.0,0.00019178,2]
[360567594,1746892275132,-294.724467,0.00019178,2]
[360567595,1746892275142,-403.90202063,0.00019178,2]
[360567596,1746892275151,-400.0,0.00019178,2]
[360567597,1746892275160,-754.95,0.00019178,2]
[360567598,1746892275170,-655.2,0.00019178,2]
[360567599,1746892275179,-564.16,0.00019178,2]
[360567600,1746892275189,-400.0,0.00019178,2]
[360567601,1746892275199,-400.0,0.00019178,2]
[360567602,1746892275209,-754.95,0.00019178,2]
[360567603,1746892275219,-294.724467,0.00019178,2]
[360567604,1746892275228,-564.16,0.00019178,2]
[360567605,1746892275238,-400.0,0.00019178,2]
[360567606,1746892275248,-400.0,0.00019178,2]
[360567607,1746892275257,-754.95,0.00019178,2]
[360567608,1746892275267,-564.16,0.00019178,2]
[360567609,1746892275277,-400.0,0.00019178,2]
[360567610,1746892275291,-400.0,0.00019178,2]
[360567611,1746892275301,-484.78225646,0.00019178,2]
[360567612,1746892275311,-294.724467,0.00019178,2]
[360567613,1746892275321,-754.95,0.00019178,2]
[360567614,1746892275331,-564.16,0.00019178,2]
[360567615,1746892275340,-400.0,0.00019178,2]
[360567616,1746892275350,-564.16,0.00019178,2]
[360567617,1746892275360,-754.95,0.00019178,2]
[360567618,1746892275370,-400.0,0.00019178,2]
[360567619,1746892275380,-294.724467,0.00019178,2]
[360567620,1746892275389,-400.0,0.00019178,2]
[360567621,1746892275399,-754.95,0.00019178,2]
[360567622,1746892275408,-400.0,0.00019178,2]
[360567623,1746892275418,-294.724467,0.00019178,2]
[360567624,1746892275428,-754.95,0.00019178,2]
[360567625,1746892275437,-400.0,0.00019178,2]
[360567626,1746892275447,-754.95,0.00019178,2]
[360567627,1746892275456,-385.94813275,0.00019178,2]
[360567628,1746892275465,-754.95,0.00019178,2]
[360567629,1746892275474,-451.89370204,0.00019178,2]
[360567630,1746892275483,-1231.0,0.00019178,2]
[360567631,1746892275493,-400.0,0.00019178,2]
[360567632,1746892275502,-400.0,0.00019178,2]
[360567633,1746892275511,-1231.0,0.00019178,2]
[360567634,1746892275520,-400.0,0.00019178,2]
[360567635,1746892275533,-400.0,0.00019178,2]
[360567636,1746892275543,-400.0,0.00019178,2]
[360567637,1746892275552,-1231.0,0.00019178,2]
[360567638,1746892275561,-400.0,0.00019178,2]
[360567639,1746892275571,-400.0,0.00019178,2]
[360567640,1746892275580,-400.0,0.00019178,2]
[360567641,1746892275589,-1231.0,0.00019178,2]
[360567642,1746892275599,-400.0,0.00019178,2]
[360567643,1746892275608,-432.6,0.00019178,2]
[360567644,1746892275617,-400.0,0.00019178,2]
[360567645,1746892275627,-1231.0,0.00019178,2]
[360567646,1746892275637,-435.61008589,0.00019178,2]
[360567647,1746892275646,-1231.0,0.00019178,2]
[360567648,1746892275656,-400.0,0.00019178,2]
[360567649,1746892275665,-402.49097462,0.00019178,2]
[360567650,1746892275674,-400.0,0.00019178,2]
[360567651,1746892275684,-400.0,0.00019178,2]
[360567652,1746892275694,-500.0,0.00019178,2]
[360567653,1746892275705,-400.0,0.00019178,2]
[360567654,1746892275714,-301.28003084,0.00019178,2]
[360567655,1746892275724,-277.48934466,0.00019178,2]
[360567656,1746892275734,-400.0,0.00019178,2]
[360567657,1746892275743,-400.0,0.00019178,2]
[360567658,1746892275752,-400.0,0.00019178,2]
[360567659,1746892275762,-400.0,0.00019178,2]
[360567660,1746892275771,-400.0,0.00019178,2]
[360567661,1746892275783,-400.0,0.00019178,2]
[360567662,1746892275792,-400.0,0.00019178,2]
[360567663,1746892275801,-400.0,0.00019178,2]
[360567664,1746892275811,-400.0,0.00019178,2]
[360567665,1746892275821,-400.0,0.00019178,2]
[360567666,1746892275830,-819.43,0.00019178,2]
[360567667,1746892275840,-400.0,0.00019178,2]
[360567668,1746892275850,-400.0,0.00019178,2]
[360567669,1746892275860,-819.43,0.00019178,2]
[360567670,1746892275869,-400.0,0.00019178,2]
[360567671,1746892275879,-350.07,0.00019178,2]
[360567672,1746892275888,-400.0,0.00019178,2]
[360567673,1746892275898,-819.43,0.00019178,2]
[360567674,1746892275907,-400.0,0.00019178,2]
[360567675,1746892275916,-389.23530848,0.00019178,2]
[360567676,1746892275926,-819.43,0.00019178,2]
[360567677,1746892275936,-400.0,0.00019178,2]
[360567678,1746892275947,-819.43,0.00019178,2]
[360567679,1746892275956,-400.0,0.00019178,2]
[360567680,1746892275966,-819.43,0.00019178,2]
[360567681,1746892275975,-173.56,0.00019178,2]
[360567682,1746892275984,-400.0,0.00019179,2]
[360567683,1746892275993,-456.8,0.00019179,2]
[360567684,1746892276003,-584.5,0.00019179,2]
[360567685,1746892276012,-400.0,0.00019179,2]
[360567686,1746892276022,-400.0,0.00019179,2]
[360567687,1746892276031,-763.58,0.00019179,2]
[360567688,1746892276041,-416.67742718,0.00019179,2]
[360567689,1746892276050,-686.91,0.00019179,2]
[360567690,1746892276062,-400.0,0.00019179,2]
[360567691,1746892276071,-658.5,0.00019179,2]
[360567692,1746892276081,-400.0,0.00019179,2]
[360567693,1746892276090,-400.0,0.00019179,2]
[360567694,1746892276100,-400.0,0.00019179,2]
[360567695,1746892276110,-914.0,0.00019179,2]
[360567696,1746892276119,-423.93,0.00019179,2]
[360567697,1746892276130,-507.15,0.00019179,2]
[360567698,1746892276140,-458.7,0.00019179,2]
[360567699,1746892276149,-400.0,0.00019179,2]
[360567700,1746892276160,-824.5,0.00019179,2]
[360567701,1746892276169,-400.0,0.00019179,2]
[360567702,1746892276178,-400.0,0.00019179,2]
[360567703,1746892276188,-400.0,0.00019179,2]
[360567704,1746892276197,-400.0,0.00019179,2]
[360567705,1746892276206,-400.0,0.00019179,2]
[360567706,1746892276216,-453.09,0.00019179,2]
[360567707,1746892276225,-400.0,0.00019179,2]
[360567708,1746892276234,-400.0,0.00019179,2]
[360567709,1746892276244,-400.0,0.00019179,2]
[360567710,1746892276254,-400.0,0.00019179,2]
[360567711,1746892276263,-400.0,0.00019179,2]
[360567712,1746892276273,-788.6,0.00019179,2]
[360567713,1746892276282,-400.0,0.00019179,2]
[360567714,1746892276291,-400.0,0.00019179,2]
[360567715,1746892276301,-512.77,0.00019179,2]
[360567716,1746892276310,-451.30547546,0.00019179,2]
[360567717,1746892276319,-414.14,0.00019179,2]
[360567718,1746892276329,-400.0,0.00019179,2]
[360567719,1746892276339,-878.18,0.00019179,2]
[360567720,1746892276348,-505.48,0.00019179,2]
[360567721,1746892276357,-594.16,0.00019179,2]
[360567722,1746892276367,-406.49,0.00019179,2]
[360567723,1746892276376,-400.0,0.00019179,2]
[360567724,1746892276385,-400.0,0.00019179,2]
[360567725,1746892276395,-400.0,0.00019179,2]
[360567726,1746892276405,-419.11,0.00019179,2]
[360567727,1746892276415,-151.0,0.00019179,2]
[360567728,1746892276424,-400.0,0.00019179,2]
[360567729,1746892276433,-151.0,0.00019179,2]
[360567730,1746892276442,-400.0,0.00019179,2]
[360567731,1746892276451,-400.0,0.00019179,2]
[360567732,1746892276461,-151.0,0.00019179,2]
[360567733,1746892276470,-400.0,0.00019179,2]
[360567734,1746892276479,-552.43,0.00019179,2]
[360567735,1746892276489,-684.12,0.00019179,2]
[360567736,1746892276499,-400.0,0.00019179,2]
[360567737,1746892276509,-400.0,0.00019179,2]
[360567738,1746892276518,-400.0,0.00019179,2]
[360567739,1746892276528,-712.94,0.00019179,2]
[360567740,1746892276543,-400.0,0.00019179,2]
[360567741,1746892276552,-604.66,0.00019179,2]
[360567742,1746892276562,-400.0,0.00019179,2]
[360567743,1746892276571,-400.0,0.00019179,2]
[360567744,1746892276581,-739.89,0.00019179,2]
[360567745,1746892276591,-912.17,0.00019179,2]
[360567746,1746892276600,-586.16,0.00019179,2]
[360567747,1746892276610,-915.12,0.00019179,2]
[360567748,1746892276619,-400.0,0.00019179,2]
[360567749,1746892276629,-2684.88,0.00019179,2]
[360567750,1746892276638,-400.0,0.00019179,2]
[360567751,1746892276648,-400.0,0.00019179,2]
[360567752,1746892276657,-400.0,0.00019179,2]
[360567753,1746892276667,-1062.13,0.00019179,2]
[360567754,1746892276677,-460.77,0.00019179,2]
[360567755,1746892276687,-400.0,0.00019179,2]
[360567756,1746892276696,-1124.82,0.00019179,2]
[360567757,1746892276705,-1073.13,0.00019179,2]
[360567758,1746892276715,-1865.71,0.00019179,2]
[360567759,1746892276725,-151.0,0.00019179,2]
[360567760,1746892276735,-263.42348087,0.00019179,2]
[360567761,1746892276744,-635.07,0.00019179,2]
[360567762,1746892276754,-400.0,0.00019179,2]
[360567763,1746892276764,-151.0,0.00019179,2]
[360567764,1746892276774,-566.81,0.00019179,2]
[360567765,1746892276786,-400.0,0.00019179,2]
[360567766,1746892276796,-1915.97,0.00019179,2]
[360567767,1746892276806,-699.66,0.00019179,2]
[360567768,1746892276816,-433.23,0.00019179,2]
[360567769,1746892276825,-303.955261,0.00019179,2]
[360567770,1746892276835,-400.0,0.00019179,2]
[360567771,1746892276845,-400.0,0.00019179,2]
[360567772,1746892276855,-303.955261,0.00019179,2]
[360567773,1746892276865,-400.0,0.00019179,2]
[360567774,1746892276876,-400.0,0.00019179,2]
[360567775,1746892276886,-400.0,0.00019179,2]
[360567776,1746892276896,-400.0,0.00019179,2]
[360567777,1746892276906,-400.0,0.00019179,2]
[360567778,1746892276915,-650.57,0.00019179,2]
[360567779,1746892276925,-400.0,0.00019179,2]
[360567780,1746892276934,-640.99,0.00019179,2]
[360567781,1746892276943,-400.0,0.00019179,2]
[360567782,1746892276953,-790.83,0.00019179,2]
[360567783,1746892276962,-42182.54,0.00019179,2]
[360567784,1746892276972,-400.0,0.00019179,2]
[360567785,1746892276981,-400.0,0.00019179,2]
[360567786,1746892276991,-668.26,0.00019179,2]
[360567787,1746892277000,-2257.2,0.00019179,2]
[360567788,1746892277010,-401.18,0.00019179,2]
[360567789,1746892277019,-400.0,0.00019179,2]
[360567790,1746892277029,-400.0,0.00019179,2]
[360567791,1746892277041,-400.0,0.00019179,2]
[360567792,1746892277050,-400.0,0.00019179,2]
[360567793,1746892277063,-546.77,0.00019179,2]
[360567794,1746892277073,-1462.73,0.00019179,2]
[360567795,1746892277082,-400.0,0.00019179,2]
[360567796,1746892277092,-2649.83,0.00019179,2]
[360567797,1746892277102,-400.0,0.00019179,2]
[360567798,1746892277111,-400.0,0.00019179,2]
[360567799,1746892277121,-436.6,0.00019179,2]
[360567800,1746892277130,-400.0,0.00019179,2]
[360567801,1746892277143,-877.12,0.00019179,2]
[360567802,1746892277153,-400.0,0.00019179,2]
[360567803,1746892277164,-1654.23,0.00019179,2]
[360567804,1746892277174,-1117.08,0.00019179,2]
[360567805,1746892277183,-400.0,0.00019179,2]
[360567806,1746892277192,-849.19,0.00019179,2]
[360567807,1746892277203,-530.44,0.00019179,2]
[360567808,1746892277212,-400.05,0.00019179,2]
[360567809,1746892277222,-511.6,0.00019179,2]
[360567810,1746892277231,-400.0,0.00019179,2]
[360567811,1746892277240,-400.0,0.00019179,2]
[360567812,1746892277250,-503.27358,0.00019179,2]
[360567813,1746892277405,-789.63,0.00019179,2]
[360567814,1746892277419,-677.94,0.00019179,2]
[360567815,1746892277429,-400.0,0.00019179,2]
[360567816,1746892277439,-1153.66,0.00019179,2]
[360567817,1746892277449,-835.15,0.00019179,2]
[360567818,1746892277458,-400.0,0.00019179,2]
[360567819,1746892277468,-6728.984786,0.00019179,2]
[360567820,1746892277477,-400.0,0.00019179,2]
[360567821,1746892277487,-441.9,0.00019179,2]
[360567822,1746892277496,-924.57,0.00019179,2]
[360567823,1746892277506,-1666.15,0.00019179,2]
[360567824,1746892277516,-505.39,0.00019179,2]
[360567825,1746892277525,-564.16,0.00019179,2]
[360567826,1746892277536,-508.820771,0.00019179,2]
[360567827,1746892277545,-294.724467,0.00019179,2]
[360567828,1746892277554,-754.95,0.00019179,2]
[360567829,1746892277563,-1231.0,0.00019179,2]
[360567830,1746892277572,-508.820771,0.00019179,2]
[360567831,1746892277581,-819.43,0.00019179,2]
[360567832,1746892277590,-400.0,0.0001918,2]
[360567833,1746892277600,-414.51998306,0.0001918,2]
[360567834,1746892277609,-604.15,0.0001918,2]
[360567835,1746892277618,-403.68716271,0.0001918,2]
[360567836,1746892277628,-400.0,0.0001918,2]
[360567837,1746892277637,-400.0,0.0001918,2]
[360567838,1746892277647,-400.0,0.0001918,2]
[360567839,1746892277655,-400.0,0.0001918,2]
[360567840,1746892277664,-400.0,0.0001918,2]
[360567841,1746892277674,-400.0,0.0001918,2]
[360567842,1746892277683,-500.0,0.0001918,2]
[360567843,1746892277692,-400.0,0.0001918,2]
[360567844,1746892277702,-403.67579638,0.0001918,2]
[360567845,1746892277711,-400.0,0.0001918,2]
[360567846,1746892277720,-411.50142867,0.0001918,2]
[360567847,1746892277730,-1000.0,0.0001918,2]
[360567848,1746892277739,-400.0,0.0001918,2]
[360567849,1746892277748,-400.0,0.0001918,2]
[360567850,1746892277758,-400.0,0.0001918,2]
[360567851,1746892277767,-400.0,0.0001918,2]
[360567852,1746892277776,-215.13279576,0.0001918,2]
[360567853,1746892277788,-383.16719257,0.0001918,2]
[360567854,1746892277798,-400.0,0.0001918,2]
[360567855,1746892277807,-403.10499183,0.0001918,2]
[360567856,1746892277816,-400.0,0.0001918,2]
[360567857,1746892277826,-400.0,0.0001918,2]
[360567858,1746892277835,-400.0,0.0001918,2]
[360567859,1746892277845,-400.0,0.0001918,2]
[360567860,1746892277854,-428.38756497,0.0001918,2]
[360567861,1746892277863,-400.0,0.0001918,2]
[360567862,1746892277873,-400.0,0.0001918,2]
[360567863,1746892277882,-400.0,0.0001918,2]
[360567864,1746892277892,-517.16,0.0001918,2]
[360567865,1746892277901,-400.0,0.0001918,2]
[360567866,1746892277910,-400.0,0.0001918,2]
[360567867,1746892277919,-400.0,0.0001918,2]
[360567868,1746892277929,-404.4544139,0.0001918,2]
[360567869,1746892277938,-400.0,0.0001918,2]
[360567870,1746892277947,-412.6,0.0001918,2]
[360567871,1746892277957,-400.0,0.0001918,2]
[360567872,1746892277965,-400.0,0.0001918,2]
[360567873,1746892277975,-400.0,0.0001918,2]
[360567874,1746892277985,-400.0,0.0001918,2]
[360567875,1746892277994,-499.0,0.0001918,2]
[360567876,1746892278003,-403.50124388,0.0001918,2]
[360567877,1746892278013,-400.0,0.0001918,2]
[360567878,1746892278022,-400.0,0.0001918,2]
[360567879,1746892278033,-400.0,0.0001918,2]
[360567880,1746892278043,-400.0,0.0001918,2]
[360567881,1746892278052,-505.62635182,0.0001918,2]
[360567882,1746892278066,-400.0,0.0001918,2]
[360567883,1746892278075,-400.0,0.0001918,2]
[360567884,1746892278085,-400.0,0.0001918,2]
[360567885,1746892278094,-482.92,0.0001918,2]
[360567886,1746892278104,-400.0,0.0001918,2]
[360567887,1746892278113,-500.0,0.0001918,2]
[360567888,1746892278122,-596.56,0.0001918,2]
[360567889,1746892278133,-400.0,0.0001918,2]
[360567890,1746892278143,-400.0,0.0001918,2]
[360567891,1746892278153,-400.0,0.0001918,2]
[360567892,1746892278162,-400.0,0.0001918,2]
[360567893,1746892278171,-400.0,0.0001918,2]
[360567894,1746892278180,-400.0,0.0001918,2]
[360567895,1746892278190,-400.0,0.0001918,2]
[360567896,1746892278200,-400.0,0.0001918,2]
[360567897,1746892278209,-400.0,0.0001918,2]
[360567898,1746892278219,-400.0,0.0001918,2]
[360567899,1746892278229,-445.56,0.0001918,2]
[360567900,1746892278238,-882.53,0.0001918,2]
[360567901,1746892278248,-470.96,0.0001918,2]
[360567902,1746892278257,-545.54,0.0001918,2]
[360567903,1746892278267,-508.03749577,0.0001918,2]
[360567904,1746892278276,-400.0,0.0001918,2]
[360567905,1746892278289,-400.0,0.0001918,2]
[360567906,1746892278299,-400.0,0.0001918,2]
[360567907,1746892278308,-400.0,0.0001918,2]
[360567908,1746892278318,-400.0,0.0001918,2]
[360567909,1746892278327,-400.0,0.0001918,2]
[360567910,1746892278336,-666.91,0.0001918,2]
[360567911,1746892278345,-1298.01,0.0001918,2]
[360567912,1746892278354,-400.0,0.0001918,2]
[360567913,1746892278364,-400.0,0.0001918,2]
[360567914,1746892278373,-471.6,0.0001918,2]
[360567915,1746892278383,-608.25,0.0001918,2]
[360567916,1746892278392,-441.03,0.0001918,2]
[360567917,1746892278402,-400.0,0.0001918,2]
[360567918,1746892278411,-432.15,0.0001918,2]
[360567919,1746892278420,-400.0,0.0001918,2]
[360567920,1746892278430,-400.0,0.0001918,2]
[360567921,1746892278439,-400.0,0.0001918,2]
[360567922,1746892278448,-400.0,0.0001918,2]
[360567923,1746892278458,-400.0,0.0001918,2]
[360567924,1746892278467,-400.0,0.0001918,2]
[360567925,1746892278477,-510.25,0.0001918,2]
[360567926,1746892278487,-641.72,0.0001918,2]
[360567927,1746892278496,-400.0,0.0001918,2]
[360567928,1746892278506,-400.0,0.0001918,2]
[360567929,1746892278515,-400.0,0.0001918,2]
[360567930,1746892278525,-509.11,0.0001918,2]
[360567931,1746892278536,-400.0,0.0001918,2]
[360567932,1746892278545,-575.21,0.0001918,2]
[360567933,1746892278555,-481.36,0.0001918,2]
[360567934,1746892278564,-467.42,0.0001918,2]
[360567935,1746892278574,-400.0,0.0001918,2]
[360567936,1746892278583,-571.6,0.0001918,2]
[360567937,1746892278592,-403.02036585,0.0001918,2]
[360567938,1746892278602,-697.14,0.0001918,2]
[360567939,1746892278611,-407.54160766,0.0001918,2]
[360567940,1746892278620,-400.0,0.0001918,2]
[360567941,1746892278629,-475.8,0.0001918,2]
[360567942,1746892278638,-400.0,0.0001918,2]
[360567943,1746892278648,-400.0,0.0001918,2]
[360567944,1746892278657,-525.94,0.0001918,2]
[360567945,1746892278666,-400.0,0.0001918,2]
[360567946,1746892278676,-400.0,0.0001918,2]
[360567947,1746892278685,-540.0,0.0001918,2]
[360567948,1746892278694,-400.0,0.0001918,2]
[360567949,1746892278704,-400.0,0.0001918,2]
[360567950,1746892278713,-216.53521442,0.0001918,2]